bitfinex-derivatives/quotes_BTCF0:USTF0_20250212
["timestamp","ask_amount","ask_price","bid_price","bid_amount"]
[1739387610975,0.00215555,96465.0,96464.0,0.58432346]
[1739387611875,0.00115555,96465.0,96464.0,0.58432346]
[1739387612984,0.00115555,96465.0,96464.0,0.5681212]
[1739387613578,0.00215555,96465.0,96464.0,0.5681212]
[1739387614172,0.00115555,96465.0,96464.0,0.5681212]
[1739387614378,0.00215555,96465.0,96464.0,0.5681212]
[1739387616572,0.0646,96488.0,96487.0,0.2072718]
[1739387616973,0.0578,96491.0,96484.0,0.3608]
[1739387617177,0.2072761,96485.0,96484.0,0.3608]
[1739387618274,0.022,96488.0,96484.0,0.3608]
[1739387618481,0.022,96488.0,96487.0,0.2072718]
[1739387618873,0.007,96488.0,96487.0,0.2072718]
[1739387619682,0.21746434,96491.0,96485.0,0.1867]
[1739387619881,0.21746434,96491.0,96490.0,0.2072653]
[1739387620780,0.01020094,96491.0,96487.0,0.002]
[1739387620980,0.2072696,96488.0,96487.0,0.002]
[1739387621284,0.2122632,96491.0,96490.0,0.001]
[1739387621488,0.2272632,96491.0,96490.0,0.002]
[1739387622183,0.2272632,96491.0,96490.0,0.001]
[1739387622184,0.2122632,96491.0,96490.0,0.001]
[1739387622891,0.2072696,96488.0,96487.0,0.002]
[1739387623479,0.2072696,96488.0,96487.0,0.001]
[1739387623886,0.006,96491.0,96484.0,0.2072781]
[1739387624094,0.2072761,96485.0,96484.0,0.2072781]
[1739387624785,0.02,96488.0,96481.0,0.24809904]
[1739387625284,0.02,96488.0,96478.0,0.31001186]
[1739387625479,0.02,96488.0,96487.0,0.2072717]
[1739387625480,0.006,96488.0,96487.0,0.2072717]
[1739387626180,0.00015546,96494.0,96492.0,0.2072591]
[1739387626380,0.20741236,96494.0,96492.0,0.2072591]
[1739387626884,0.20741236,96494.0,96492.0,0.5680591]
[1739387627186,0.2072589,96493.0,96492.0,0.5680591]
[1739387627382,0.2072589,96493.0,96492.0,0.5690591]
[1739387628281,0.2072589,96493.0,96492.0,0.2082591]
[1739387628688,0.2212589,96493.0,96492.0,0.2082591]
[1739387629189,0.2272589,96493.0,96492.0,0.2082591]
[1739387629487,0.2272589,96493.0,96492.0,0.001]
[1739387632882,0.02,96493.0,96492.0,0.3618]
[1739387633098,0.1,96500.0,96499.0,0.207246]
[1739387633592,0.11033389,96500.0,96499.0,0.207246]
[1739387634086,0.115,96500.0,96499.0,0.207246]
[1739387634793,0.1,96500.0,96499.0,0.207246]
[1739387634989,0.104,96500.0,96499.0,0.207246]
[1739387636393,0.1,96500.0,96499.0,0.208246]
[1739387637090,0.1,96500.0,96499.0,0.207246]
[1739387637290,0.1,96500.0,96499.0,0.208246]
[1739387639293,0.1,96500.0,96499.0,0.001]
[1739387639795,0.207261,96492.0,96491.0,0.30992504]
[1739387640889,0.2072493,96498.0,96492.0,0.2072608]
[1739387641086,0.1618,96500.0,96492.0,0.2072608]
[1739387641297,0.2072531,96496.0,96491.0,0.30992504]
[1739387642097,0.1598,96500.0,96491.0,0.30992504]
[1739387642298,0.1598,96500.0,96499.0,0.568046]
[1739387642299,0.1,96500.0,96499.0,0.568046]
[1739387643401,0.101,96500.0,96499.0,0.569046]
[1739387644899,0.1,96500.0,96499.0,0.568046]
[1739387645093,0.1,96500.0,96499.0,0.58524313]
[1739387645299,0.002,96500.0,96499.0,0.37799713]
[1739387645505,0.00015546,96509.0,96499.0,0.37799713]
[1739387645506,0.00015546,96509.0,96508.0,0.2072266]
[1739387645701,0.01021394,96515.0,96508.0,0.37699713]
[1739387645897,0.01021394,96515.0,96514.0,0.2072138]
[1739387646602,0.2071997,96521.0,96514.0,0.2072138]
[1739387646906,0.008,96515.0,96514.0,0.2072138]
[1739387647201,0.008,96515.0,96514.0,0.22340927]
[1739387648295,0.008,96515.0,96514.0,0.22440927]
[1739387648490,0.2072014,96520.0,96514.0,0.22540927]
[1739387648697,0.2072014,96520.0,96515.0,0.01619547]
[1739387648896,0.2072014,96520.0,96514.0,0.2092138]
[1739387649194,0.01217916,96522.0,96519.0,0.207203]
[1739387649394,0.012,96515.0,96514.0,0.2092138]
[1739387649704,0.012,96515.0,96514.0,0.22540916]
[1739387649901,0.012,96515.0,96514.0,0.22440916]
[1739387650100,0.012,96520.0,96518.0,0.2072045]
[1739387650301,0.00015546,96524.0,96514.0,0.24891254]
[1739387651000,0.00015546,96524.0,96523.0,0.2071945]
[1739387651398,0.01039131,96524.0,96523.0,0.2071945]
[1739387651602,0.00015546,96524.0,96523.0,0.2071945]
[1739387651903,0.009,96515.0,96514.0,0.45712634]
[1739387652305,0.009,96515.0,96514.0,0.45612634]
[1739387652493,0.207195,96523.0,96519.0,0.2072021]
[1739387652899,0.00915546,96524.0,96518.0,0.3608]
[1739387653093,0.00915546,96524.0,96523.0,0.2071945]
[1739387653306,0.00915546,96524.0,96518.0,0.3608]
[1739387653307,0.2072031,96519.0,96518.0,0.3608]
[1739387654899,0.00015546,96524.0,96518.0,0.3608]
[1739387655100,0.00015546,96524.0,96523.0,0.2071945]
[1739387655406,0.00915546,96524.0,96523.0,0.2071945]
[1739387656193,0.00915546,96524.0,96523.0,0.2091945]
[1739387656606,0.3608,96548.0,96546.0,0.2071441]
[1739387657105,0.37141425,96548.0,96546.0,0.2071441]
[1739387658507,0.37141425,96548.0,96546.0,0.2081441]
[1739387659013,0.57855525,96548.0,96546.0,0.2081441]
[1739387659306,0.207143,96547.0,96546.0,0.002]
[1739387660305,0.01061425,96548.0,96547.0,0.207143]
[1739387660505,0.1894,96556.0,96546.0,0.002]
[1739387660704,0.2071291,96554.0,96546.0,0.002]
[1739387660914,0.1894,96556.0,96555.0,0.2071258]
[1739387661113,0.3965237,96556.0,96555.0,0.2071258]
[1739387661612,0.1894,96556.0,96555.0,0.2071258]
[1739387662002,0.1894,96556.0,96555.0,0.2081258]
[1739387662202,0.00165509,96557.0,96555.0,0.001]
[1739387662406,0.00165509,96557.0,96556.0,0.5679237]
[1739387663213,0.00010073,96557.0,96556.0,0.5679237]
[1739387663415,0.1226,96573.0,96561.0,0.051778]
[1739387663611,0.36176001,96590.0,96570.0,0.3608]
[1739387663922,0.0597,96598.0,96596.0,0.207038]
[1739387664301,0.2667341,96598.0,96592.0,0.2070455]
[1739387664507,0.0597,96598.0,96587.0,0.00015536]
[1739387664701,0.3608,96590.0,96587.0,0.00015536]
[1739387664900,0.3608,96590.0,96561.0,0.4241]
[1739387665114,0.2070562,96588.0,96570.0,0.12398664]
[1739387665299,0.5678562,96588.0,96582.0,0.2070662]
[1739387665507,0.3608,96588.0,96569.0,0.3608]
[1739387665713,0.207081,96576.0,96562.0,0.07212]
[1739387665914,0.207081,96576.0,96561.0,0.4241]
[1739387666108,0.06395536,96579.0,96569.0,0.2070948]
[1739387666301,0.207092,96571.0,96565.0,0.18570342]
[1739387666706,0.207092,96571.0,96567.0,0.2070995]
[1739387667214,0.2070945,96570.0,96567.0,0.2070995]
[1739387668508,0.2070945,96570.0,96567.0,0.2090995]
[1739387669303,0.2070945,96570.0,96568.0,0.2070973]
[1739387669519,0.2070945,96570.0,96567.0,0.002]
[1739387669713,0.2070945,96570.0,96569.0,0.2070958]
[1739387670115,0.0621,96575.0,96567.0,0.001]
[1739387670311,0.207098,96568.0,96567.0,0.001]
[1739387670716,0.207098,96568.0,96567.0,0.2081001]
[1739387670918,0.2070872,96574.0,96570.0,0.2070925]
[1739387671107,0.2070872,96574.0,96567.0,0.001]
[1739387671307,0.01016699,96576.0,96575.0,0.207083]
[1739387671513,0.06395536,96579.0,96575.0,0.207083]
[1739387671714,0.2070767,96578.0,96575.0,0.207083]
[1739387672120,0.00015536,96579.0,96578.0,0.2070765]
[1739387673021,0.20722966,96579.0,96578.0,0.2070765]
[1739387674816,0.2070853,96574.0,96572.0,0.2070887]
[1739387675424,0.00015536,96579.0,96565.0,0.0517758]
[1739387675623,0.00015536,96579.0,96578.0,0.2070765]
[1739387677612,0.00115536,96579.0,96578.0,0.2070765]
[1739387678024,0.00015536,96579.0,96578.0,0.2070765]
[1739387678224,0.1,96600.0,96574.0,0.3608]
[1739387678418,0.2070443,96593.0,96592.0,0.3608]
[1739387678615,0.2070443,96593.0,96574.0,0.3808]
[1739387678616,0.1,96600.0,96583.0,0.3608]
[1739387678813,0.12398664,96593.0,96583.0,0.3608]
[1739387679009,0.2070582,96587.0,96583.0,0.3608]
[1739387679215,0.23445394,96600.0,96577.0,0.1345]
[1739387679423,0.3608,96591.0,96577.0,0.1345]
[1739387680024,0.2070723,96580.0,96579.0,0.2070736]
[1739387680913,0.32258664,96590.0,96577.0,0.1345]
[1739387681127,0.003,96587.0,96583.0,0.2070646]
[1739387681725,0.2070765,96578.0,96577.0,0.3415774]
[1739387682311,0.004,96580.0,96579.0,0.2070743]
[1739387682521,0.001,96580.0,96579.0,0.2070743]
[1739387682739,0.2070599,96586.0,96585.0,0.2070615]
[1739387683624,0.0644,96599.0,96585.0,0.2070615]
[1739387683625,0.1,96600.0,96585.0,0.73778288]
[1739387683924,0.1,96600.0,96599.0,0.2070316]
[1739387685126,0.1,96600.0,96599.0,0.21719233]
[1739387685317,0.106,96600.0,96599.0,0.21819233]
[1739387685517,0.106,96600.0,96599.0,0.2080316]
[1739387685821,0.106,96600.0,96599.0,0.2090316]
[1739387686024,0.1,96600.0,96599.0,0.2080316]
[1739387686327,0.104,96600.0,96599.0,0.2070316]
[1739387687231,0.3608,96623.0,96600.0,0.0517573]
[1739387687427,0.12398664,96620.0,96616.0,0.206995]
[1739387687625,0.2069849,96621.0,96616.0,0.206995]
[1739387688123,0.2069849,96621.0,96618.0,0.2069899]
[1739387688316,0.2069868,96620.0,96618.0,0.2069899]
[1739387689026,0.37093479,96623.0,96621.0,0.2069835]
[1739387689230,0.37093479,96623.0,96622.0,0.2069823]
[1739387689429,0.01013479,96623.0,96622.0,0.2069823]
[1739387689635,0.3608,96631.0,96618.0,0.001]
[1739387689932,0.3608,96631.0,96622.0,0.2069812]
[1739387690122,0.2069802,96623.0,96622.0,0.2069812]
[1739387690518,0.5677802,96623.0,96622.0,0.2069812]
[1739387690720,0.3608,96623.0,96617.0,0.206991]
[1739387690925,0.3608,96623.0,96618.0,0.001]
[1739387691226,0.2069887,96619.0,96618.0,0.002]
[1739387691530,0.2069887,96619.0,96618.0,0.001]
[1739387691730,0.2070041,96612.0,96611.0,0.207]
[1739387692124,0.3608,96613.0,96600.0,0.18570342]
[1739387692321,0.207023,96603.0,96600.0,0.18570342]
[1739387694634,0.207023,96603.0,96588.0,0.18570342]
[1739387695524,0.21718509,96603.0,96588.0,0.18570342]
[1739387696524,0.21718509,96603.0,96588.0,0.39275832]
[1739387697831,0.21718509,96603.0,96589.0,0.2070522]
[1739387698935,0.21718509,96603.0,96602.0,1e-08]
[1739387702443,0.207068,96582.0,96581.0,0.45577342]
[1739387702741,0.207068,96582.0,96581.0,0.4719588]
[1739387703532,0.207068,96582.0,96581.0,0.45577342]
[1739387704133,0.207068,96582.0,96581.0,0.46577342]
[1739387704631,0.207068,96582.0,96581.0,0.48295854]
[1739387704830,0.2070595,96586.0,96585.0,0.2070573]
[1739387705446,0.207068,96582.0,96581.0,0.46677212]
[1739387705643,0.207068,96582.0,96581.0,0.48295712]
[1739387706244,0.207068,96582.0,96581.0,0.48195712]
[1739387706749,0.57837565,96588.0,96587.0,0.2070573]
[1739387707047,0.21757565,96588.0,96587.0,0.2070573]
[1739387707233,0.000155,96591.0,96590.0,0.207051]
[1739387708744,0.000155,96591.0,96590.0,0.210051]
[1739387709347,0.2072038,96591.0,96590.0,0.003]
[1739387715652,0.2072038,96591.0,96590.0,0.210051]
[1739387716554,0.03272958,96591.0,96590.0,0.210051]
[1739387716758,0.2070488,96591.0,96590.0,0.210051]
[1739387717451,0.2070488,96591.0,96590.0,0.003]
[1739387718053,0.2070488,96591.0,96590.0,0.210051]
[1739387718356,0.3608,96594.0,96593.0,0.2070446]
[1739387719359,0.01061161,96599.0,96590.0,0.003]
[1739387719554,0.3608,96609.0,96590.0,0.003]
[1739387719855,0.2070175,96606.0,96605.0,0.2070124]
[1739387720352,0.01049642,96609.0,96597.0,0.3608]
[1739387720557,0.2069953,96616.0,96615.0,0.2069974]
[1739387721957,0.2069953,96616.0,96615.0,0.2089974]
[1739387723245,0.2069846,96621.0,96620.0,0.2069823]
[1739387723848,0.01062303,96624.0,96623.0,0.2069803]
[1739387724059,0.2069781,96624.0,96623.0,0.2069803]
[1739387724359,0.2069869,96620.0,96619.0,0.2069879]
[1739387725652,0.37124245,96625.0,96609.0,0.3608]
[1739387725962,0.37124245,96625.0,96624.0,0.2069781]
[1739387726259,0.01044245,96625.0,96624.0,0.2069781]
[1739387726449,0.18388161,96629.0,96628.0,0.2069696]
[1739387726755,0.19423924,96629.0,96628.0,0.2069696]
[1739387727448,0.18388161,96629.0,96628.0,0.2069696]
[1739387728054,0.2069578,96634.0,96619.0,0.00115528]
[1739387728257,0.2069578,96634.0,96628.0,0.002]
[1739387728456,0.12398664,96640.0,96632.0,0.206959]
[1739387728457,0.2069629,96633.0,96632.0,0.206959]
[1739387729248,0.37382009,96636.0,96635.0,0.2069546]
[1739387729449,0.36235316,96636.0,96635.0,0.2069546]
[1739387729861,0.00155316,96636.0,96635.0,0.2069546]
[1739387730360,0.20850556,96636.0,96635.0,0.2069546]
[1739387730752,0.00155316,96636.0,96629.0,0.1993]
[1739387730957,0.2069653,96630.0,96629.0,0.4062662]
[1739387731154,0.2069653,96630.0,96607.0,0.3608]
[1739387731155,0.3608,96630.0,96607.0,0.3608]
[1739387731452,0.2069867,96622.0,96621.0,0.2069825]
[1739387732760,0.3608,96630.0,96620.0,0.30992504]
[1739387733059,0.3608,96630.0,96629.0,0.2069674]
[1739387733458,0.2069653,96630.0,96629.0,0.2069674]
[1739387733859,0.2069574,96635.0,96634.0,0.2069567]
[1739387737266,0.00155316,96636.0,96635.0,0.2069546]
[1739387737466,0.20850556,96636.0,96635.0,0.2069546]
[1739387738055,0.00155316,96636.0,96635.0,0.2069546]
[1739387740565,0.206976,96627.0,96626.0,0.2069714]
[1739387741371,0.2069826,96623.0,96622.0,0.2069801]
[1739387741565,0.2069867,96620.0,96617.0,0.3921865]
[1739387741769,0.2069867,96620.0,96617.0,0.1851947]
[1739387743672,0.2069867,96620.0,96615.0,0.206996]
[1739387744068,0.2069867,96620.0,96612.0,0.1982]
[1739387744461,0.2069867,96620.0,96610.0,0.1851947]
[1739387745767,0.5677867,96620.0,96612.0,0.2070034]
[1739387745963,0.5677867,96620.0,96610.0,0.1851947]
[1739387746159,0.5677867,96620.0,96614.0,0.206999]
[1739387746772,0.5677867,96620.0,96618.0,0.2069902]
[1739387746966,0.2069867,96620.0,96618.0,0.2069902]
[1739387748271,0.2069867,96620.0,96619.0,0.20714408]
[1739387752580,0.2069867,96620.0,96619.0,0.00015528]
[1739387759288,0.2069867,96620.0,96619.0,8e-08]
[1739387759487,0.2070124,96608.0,96607.0,0.2117102]
[1739387759678,0.5678124,96608.0,96607.0,0.2117102]
[1739387760371,0.2070381,96596.0,96582.0,0.57574604]
[1739387760681,0.5678381,96596.0,96582.0,0.36867854]
[1739387760888,0.5678381,96596.0,96594.0,0.30992504]
[1739387762679,0.5678381,96596.0,96595.0,0.018]
[1739387762882,0.57841392,96596.0,96595.0,0.018]
[1739387763388,0.57841392,96596.0,96594.0,0.32792504]
[1739387763883,0.57841392,96596.0,96595.0,0.003]
[1739387764386,0.57841392,96596.0,96595.0,0.015]
[1739387766075,0.57841392,96596.0,96595.0,0.018]
[1739387766290,0.57841392,96596.0,96595.0,0.003]
[1739387766484,0.37137582,96596.0,96592.0,0.2070455]
[1739387766786,0.2070446,96593.0,96592.0,0.2070455]
[1739387766984,0.2070446,96593.0,96586.0,0.00015528]
[1739387766985,0.2070574,96587.0,96586.0,0.00015528]
[1739387767294,0.2070574,96587.0,96586.0,1e-08]
[1739387769691,0.2080574,96587.0,96586.0,0.20705961]
[1739387771794,0.2080574,96587.0,96586.0,1e-08]
[1739387773797,0.2080574,96587.0,96586.0,0.20705961]
[1739387775598,0.2080574,96587.0,96586.0,1e-08]
[1739387780113,0.5080574,96587.0,96586.0,1e-08]
[1739387780612,0.2080574,96587.0,96586.0,1e-08]
[1739387781813,0.2080574,96587.0,96586.0,0.20020001]
[1739387782302,0.2080574,96587.0,96586.0,0.40725961]
[1739387782912,0.001,96587.0,96586.0,0.40725961]
[1739387784417,0.20717468,96605.0,96603.0,0.2070215]
[1739387784418,0.00015528,96605.0,96603.0,0.2070215]
[1739387786413,0.00015528,96605.0,96603.0,0.2090215]
[1739387787917,0.00015528,96605.0,96603.0,0.2070215]
[1739387788722,0.00015528,96605.0,96603.0,0.2090215]
[1739387789418,0.00015528,96605.0,96604.0,0.3608]
[1739387790423,0.01019309,96621.0,96604.0,0.3608]
[1739387790628,0.12398664,96640.0,96628.0,0.2069694]
[1739387790818,0.2069758,96626.0,96615.0,0.3608]
[1739387791524,0.37114978,96629.0,96628.0,0.2069695]
[1739387791525,0.01034978,96629.0,96628.0,0.2069695]
[1739387791720,0.00015527,96630.0,96628.0,0.2069695]
[1739387791917,0.00015527,96630.0,96629.0,0.0668]
[1739387792215,0.00015527,96630.0,96629.0,0.1991]
[1739387793724,0.20712057,96630.0,96629.0,0.2001]
[1739387794717,0.20712057,96630.0,96629.0,0.2011]
[1739387796627,0.21736891,96630.0,96629.0,0.2011]
[1739387797127,0.21736891,96630.0,96629.0,0.1991]
[1739387798027,0.21736891,96630.0,96629.0,0.4060674]
[1739387798423,0.20712057,96630.0,96629.0,0.4060674]
[1739387798832,0.00015527,96630.0,96629.0,0.4060674]
[1739387800522,0.00015527,96630.0,96629.0,0.41621926]
[1739387800723,0.00015527,96630.0,96629.0,0.4060674]
[1739387802222,0.20712057,96630.0,96629.0,0.4060674]
[1739387803821,0.20712057,96630.0,96629.0,0.2737674]
[1739387804523,0.01056728,96630.0,96624.0,0.2069778]
[1739387804724,0.567776,96625.0,96624.0,0.2069778]
[1739387805523,0.3608,96625.0,96624.0,0.2069778]
[1739387807326,0.00015527,96630.0,96629.0,0.2069674]
[1739387810932,0.00015527,96630.0,96629.0,0.21711088]
[1739387811934,0.33090924,96650.0,96649.0,0.2069246]
[1739387812130,0.2069226,96650.0,96649.0,0.2069246]
[1739387812535,0.21704844,96650.0,96649.0,0.2069246]
[1739387813028,0.21704844,96650.0,96649.0,0.2079246]
[1739387814030,0.21704844,96650.0,96649.0,0.2089246]
[1739387814739,0.3608,96651.0,96650.0,0.2069224]
[1739387815536,0.5677203,96651.0,96650.0,0.2069224]
[1739387816139,0.2069225,96650.0,96649.0,0.001]
[1739387816529,0.2069225,96650.0,96649.0,0.2079246]
[1739387817040,0.2069225,96650.0,96649.0,0.2069246]
[1739387818037,0.2069225,96650.0,96649.0,0.2079246]
[1739387818434,0.2069225,96650.0,96649.0,0.2089246]
[1739387818631,0.3608,96651.0,96649.0,0.002]
[1739387818936,0.3608,96651.0,96650.0,0.2069225]
[1739387819832,0.5677203,96651.0,96650.0,0.2069225]
[1739387821030,0.3608,96651.0,96650.0,0.2079225]
[1739387821631,0.3608,96651.0,96650.0,0.2089225]
[1739387821832,0.5677204,96651.0,96650.0,0.2089225]
[1739387822135,0.3608,96651.0,96650.0,0.2089225]
[1739387823338,0.5677204,96651.0,96650.0,0.2089225]
[1739387823537,0.3608,96651.0,96650.0,0.2089225]
[1739387826844,0.3608,96651.0,96650.0,0.22509664]
[1739387827433,0.3608,96651.0,96650.0,0.23909664]
[1739387827633,0.3608,96651.0,96650.0,0.03217414]
[1739387827834,0.5677203,96651.0,96650.0,0.018]
[1739387828034,0.5677203,96651.0,96650.0,0.03417441]
[1739387828240,0.2069353,96644.0,96643.0,0.24794142]
[1739387828435,0.5677353,96644.0,96643.0,0.24794142]
[1739387829728,0.5677353,96644.0,96643.0,0.26411689]
[1739387830135,0.5677353,96644.0,96643.0,0.26411637]
[1739387830439,0.5677353,96644.0,96643.0,0.01617495]
[1739387830635,0.3608,96644.0,96643.0,0.01617495]
[1739387831236,0.3608,96644.0,96643.0,0.01817495]
[1739387831639,0.3658,96644.0,96643.0,0.01817495]
[1739387832037,0.3658,96644.0,96643.0,0.01817458]
[1739387832232,0.3628,96644.0,96643.0,0.01817458]
[1739387834739,0.3618,96644.0,96643.0,0.01817458]
[1739387834945,0.3628,96644.0,96643.0,0.02317458]
[1739387835440,0.3638,96644.0,96643.0,0.23011208]
[1739387835841,0.3618,96644.0,96643.0,0.23011208]
[1739387836045,0.3618,96644.0,96643.0,0.23111208]
[1739387836551,0.3618,96644.0,96643.0,0.23011208]
[1739387836741,0.3638,96644.0,96643.0,0.23211189]
[1739387837147,0.5707353,96644.0,96643.0,0.02517439]
[1739387837346,0.5697353,96644.0,96643.0,0.01617439]
[1739387837542,0.5697353,96644.0,96643.0,0.02217439]
[1739387837849,0.5798717,96644.0,96643.0,0.02217439]
[1739387838044,0.5778717,96644.0,96643.0,0.02217439]
[1739387838252,0.5778717,96644.0,96643.0,0.02117439]
[1739387838738,0.5808717,96644.0,96643.0,0.02117439]
[1739387839743,0.5808717,96644.0,96643.0,0.01617439]
[1739387839943,0.5828717,96644.0,96643.0,0.01617439]
[1739387840344,0.2069417,96641.0,96640.0,0.00015528]
[1739387840542,0.2069417,96641.0,96640.0,0.01633078]
[1739387841850,0.2089417,96641.0,96640.0,0.01633078]
[1739387842338,0.2069417,96641.0,96640.0,0.01633078]
[1739387842541,0.003,96641.0,96640.0,0.22327428]
[1739387843243,0.003,96641.0,96640.0,1.72327428]
[1739387843841,0.004,96641.0,96640.0,1.73127428]
[1739387844553,0.001,96641.0,96640.0,1.52533038]
[1739387844746,0.3608,96644.0,96643.0,0.2069375]
[1739387844948,0.3608,96644.0,96643.0,0.2231126]
[1739387845246,0.3608,96644.0,96643.0,0.22311164]
[1739387845843,0.3608,96644.0,96643.0,0.24899034]
[1739387846247,0.3608,96660.0,96643.0,0.40285284]
[1739387846441,0.3608,96660.0,96653.0,0.2069161]
[1739387846653,0.3608,96660.0,96653.0,0.22309024]
[1739387846950,0.5677014,96660.0,96653.0,0.24896806]
[1739387847150,0.2173539,96654.0,96653.0,0.24896806]
[1739387847463,0.2173539,96654.0,96653.0,0.22309024]
[1739387847954,0.2213539,96654.0,96653.0,0.22309024]
[1739387848549,0.2213539,96654.0,96653.0,0.01617414]
[1739387849845,0.2213539,96654.0,96653.0,0.04205351]
[1739387850547,0.01444,96654.0,96644.0,0.3608]
[1739387850756,0.206931,96646.0,96645.0,0.0420539]
[1739387851753,0.2213551,96654.0,96645.0,0.0420539]
[1739387851947,0.2183551,96654.0,96648.0,0.2069256]
[1739387852144,0.01144,96654.0,96649.0,0.0420539]
[1739387852347,0.01144,96654.0,96650.0,0.0420539]
[1739387852348,0.2069191,96652.0,96650.0,0.0420539]
[1739387852547,0.2069191,96652.0,96651.0,0.0420539]
[1739387852751,0.2069191,96652.0,96651.0,0.04205346]
[1739387853152,0.01044,96654.0,96651.0,0.24897369]
[1739387853356,0.01044,96654.0,96644.0,0.3658]
[1739387853357,0.01044,96654.0,96652.0,0.24896999]
[1739387853552,0.01044,96654.0,96653.0,0.04205339]
[1739387853954,0.01244,96654.0,96653.0,0.04205339]
[1739387854452,0.01344,96654.0,96653.0,0.04205339]
[1739387854657,0.01344,96654.0,96653.0,0.04205242]
[1739387855054,0.01144,96654.0,96653.0,0.04205242]
[1739387855761,0.01044,96654.0,96653.0,0.04205242]
[1739387856651,0.07994,96654.0,96653.0,0.04205518]
[1739387856851,0.2868539,96654.0,96653.0,0.01617507]
[1739387857052,0.2868539,96654.0,96653.0,0.01917507]
[1739387857659,0.2918539,96654.0,96653.0,0.01917507]
[1739387857853,0.2988539,96654.0,96653.0,0.01717507]
[1739387858757,0.2938539,96654.0,96653.0,0.01717507]
[1739387858958,0.2988539,96654.0,96653.0,0.01717507]
[1739387859755,0.2978539,96654.0,96653.0,0.01617507]
[1739387860462,0.2868539,96654.0,96653.0,0.01617507]
[1739387860663,0.3028539,96654.0,96653.0,0.01817507]
[1739387861154,0.02044,96654.0,96653.0,0.01717507]
[1739387861359,0.02644,96654.0,96653.0,0.0430543]
[1739387861869,0.02644,96654.0,96653.0,0.0440543]
[1739387862258,0.01644,96654.0,96653.0,0.0430543]
[1739387862767,0.01644,96654.0,96653.0,0.04305285]
[1739387863266,0.01744,96654.0,96653.0,0.04305285]
[1739387863669,0.01144,96654.0,96653.0,0.04205285]
[1739387863868,0.2213539,96654.0,96653.0,0.04205285]
[1739387864869,0.2213539,96654.0,96653.0,0.01617417]
[1739387865362,0.2183539,96654.0,96653.0,0.01617417]
[1739387865561,0.2213539,96654.0,96653.0,0.01617417]
[1739387866358,0.23371252,96654.0,96653.0,0.01617417]
[1739387866959,0.23471252,96654.0,96653.0,0.01617417]
[1739387867162,0.24071252,96654.0,96653.0,0.01717417]
[1739387867663,0.24071252,96654.0,96653.0,0.001]
[1739387868061,0.24071252,96654.0,96653.0,0.01717573]
[1739387868464,0.24171252,96654.0,96653.0,0.01717573]
[1739387868763,0.23971252,96654.0,96653.0,0.01717573]
[1739387869375,0.23971252,96654.0,96653.0,0.01617457]
[1739387869557,0.24271252,96654.0,96653.0,0.01717457]
[1739387869957,0.23771252,96654.0,96653.0,0.01717457]
[1739387870162,0.23371252,96654.0,96653.0,0.01717457]
[1739387870364,0.23771252,96654.0,96653.0,0.01717457]
[1739387870566,0.23771252,96654.0,96653.0,0.26530689]
[1739387871772,0.24371252,96654.0,96653.0,0.26630689]
[1739387872973,0.24371252,96654.0,96653.0,0.26630678]
[1739387874269,0.24371252,96654.0,96653.0,0.29218591]
[1739387874475,0.2333539,96654.0,96653.0,0.29218591]
[1739387874777,0.2333539,96654.0,96653.0,0.49910201]
[1739387874979,0.02644,96654.0,96653.0,0.25096969]
[1739387875277,0.02644,96654.0,96653.0,0.2509696]
[1739387876067,0.2333539,96654.0,96653.0,0.2509696]
[1739387876678,0.2333539,96654.0,96653.0,0.22509049]
[1739387876978,0.2333539,96654.0,96653.0,0.25096952]
[1739387877564,0.2333539,96654.0,96653.0,0.2089161]
[1739387877771,0.2333539,96654.0,96653.0,0.2509695]
[1739387879665,0.2333539,96654.0,96653.0,0.0440534]
[1739387880270,0.2333539,96654.0,96653.0,0.01817438]
[1739387881176,0.2333539,96654.0,96653.0,0.01817496]
[1739387882583,0.2333539,96654.0,96653.0,0.002]
[1739387882788,0.2333539,96654.0,96653.0,0.01817609]
[1739387885184,0.2333539,96654.0,96653.0,0.01817619]
[1739387888286,0.2333539,96654.0,96653.0,0.01817542]
[1739387891088,0.2243539,96654.0,96653.0,0.01717542]
[1739387891786,0.2333539,96654.0,96653.0,0.01817542]
[1739387892289,0.2333539,96654.0,96653.0,0.26635978]
[1739387893483,0.2333539,96654.0,96653.0,0.26635981]
[1739387894984,0.2333539,96654.0,96653.0,0.01817545]
[1739387901408,0.2333539,96654.0,96653.0,0.01817477]
[1739387901696,0.2333539,96654.0,96653.0,0.22509087]
[1739387901902,0.2333539,96654.0,96653.0,0.22509086]
[1739387902701,0.2333539,96654.0,96653.0,0.01817476]
[1739387903606,0.2333539,96654.0,96653.0,0.01817518]
[1739387905410,0.2333539,96654.0,96653.0,0.01817584]
[1739387908205,0.2333539,96654.0,96653.0,0.22509194]
[1739387908904,0.2333539,96654.0,96653.0,0.01817584]
[1739387914208,0.2333539,96654.0,96653.0,0.01817476]
[1739387915616,0.2333539,96654.0,96653.0,0.22509086]
[1739387916402,0.02644,96654.0,96653.0,0.25097039]
[1739387916612,0.02644,96654.0,96653.0,0.31657039]
[1739387916906,0.3608,96660.0,96659.0,0.2069032]
[1739387917102,0.3608,96660.0,96659.0,0.22307793]
[1739387917517,0.3608,96660.0,96659.0,0.04205364]
[1739387918111,0.3718,96660.0,96659.0,0.04305364]
[1739387918313,0.3768,96660.0,96659.0,0.04405364]
[1739387918512,0.3768,96660.0,96659.0,0.04405322]
[1739387919414,0.016,96660.0,96659.0,0.04405322]
[1739387919620,0.3718,96660.0,96659.0,0.04305322]
[1739387920017,0.3628,96660.0,96659.0,0.04205322]
[1739387921709,0.3628,96660.0,96659.0,0.01617431]
[1739387922021,0.3628,96660.0,96659.0,1e-08]
[1739387923118,0.3628,96660.0,96656.0,0.10466428]
[1739387923119,0.2069075,96657.0,96656.0,0.10466428]
[1739387923312,0.2069075,96657.0,96646.0,0.36815854]
[1739387923313,0.2069289,96647.0,96646.0,0.36815854]
[1739387925124,0.2069289,96647.0,96646.0,0.37115854]
[1739387925916,0.21736069,96647.0,96646.0,0.37115854]
[1739387926212,0.21736069,96647.0,96646.0,0.003]
[1739387927423,0.21736069,96647.0,96635.0,0.0671]
[1739387927424,0.01043179,96647.0,96635.0,0.0671]
[1739387927623,0.2069418,96641.0,96629.0,0.36815854]
[1739387928519,0.2069418,96641.0,96640.0,0.00715528]
[1739387930221,0.2069418,96641.0,96640.0,0.00015528]
[1739387930529,0.2069418,96641.0,96640.0,0.00715528]
[1739387931619,0.2069418,96641.0,96640.0,0.00115528]